[Event "Titled Tuesday Blitz March 07 Late 2023"]
[White "Do Valle Cardoso, Lucas"]
[Black "Mbonu, David"]
[WhiteFideId "2163144"]
[BlackFideId "30927420"]
[WhiteElo "2383"]
[BlackElo "2375"]
[Result "1-0"]
[Round "04"]
[TimeControl "180+2"]
[Date "2023.03.07"]
[WhiteClock "0:01:02"]
[BlackClock "0:01:18"]

1. e4 {[%clk 0:03:00]}  e5 {[%clk 0:02:58]} 2. Nf3 {[%clk 0:02:58]}  Nc6 {[%clk 0:02:57]} 3. d4 {[%clk 0:02:57]}  exd4 {[%clk 0:02:58]} 4. Bc4 {[%clk 0:02:57]}  Nf6 {[%clk 0:02:58]} 5. e5 {[%clk 0:02:56]}  d5 {[%clk 0:02:57]} 6. Bb5 {[%clk 0:02:54]}  Ne4 {[%clk 0:02:57]} 7. Nxd4 {[%clk 0:02:54]}  Bd7 {[%clk 0:02:58]} 8. Bxc6 {[%clk 0:02:55]}  bxc6 {[%clk 0:02:58]} 9. O-O {[%clk 0:02:56]}  Bc5 {[%clk 0:02:59]} 10. f3 {[%clk 0:02:56]}  Ng5 {[%clk 0:02:59]} 11. f4 {[%clk 0:02:56]}  Ne4 {[%clk 0:03:00]} 12. Be3 {[%clk 0:02:55]}  Qb8 {[%clk 0:02:59]} 13. Nc3 {[%clk 0:02:55]}  Qxb2 {[%clk 0:02:57]} 14. Nxe4 {[%clk 0:02:56]}  dxe4 {[%clk 0:02:57]} 15. Qd2 {[%clk 0:02:56]}  Rd8 {[%clk 0:02:56]} 16. Rab1 {[%clk 0:02:55]}  Qa3 {[%clk 0:02:55]} 17. Rb3 {[%clk 0:02:54]}  Qa4 {[%clk 0:02:44]} 18. Qc3 {[%clk 0:02:52]}  Bb6 {[%clk 0:02:41]} 19. Ra3 {[%clk 0:02:52]}  Bxd4 {[%clk 0:02:36]} 20. Bxd4 {[%clk 0:02:52]}  Qb5 {[%clk 0:02:36]} 21. Ra5 {[%clk 0:02:27]}  Qe2 {[%clk 0:02:35]} 22. f5 {[%clk 0:02:05]}  O-O {[%clk 0:02:26]} 23. Rxa7 {[%clk 0:02:00]}  c5 {[%clk 0:01:52]} 24. Bxc5 {[%clk 0:01:29]}  Bb5 {[%clk 0:01:52]} 25. Re1 {[%clk 0:01:29]}  Qg4 {[%clk 0:01:46]} 26. Bxf8 {[%clk 0:01:22]}  Be2 {[%clk 0:01:27]} 27. Be7 {[%clk 0:01:04]}  Bf3 {[%clk 0:01:24]} 28. Qd2 {[%clk 0:01:03]}  e3 {[%clk 0:01:18]} 29. Qxd8# {[%clk 0:01:02]} 1-0


[Site "https://www.chess.com"]

[Event "Titled Tuesday Blitz March 07 Late 2023"]
[White "Gascon Del Nogal, Jose Rafael"]
[Black "Karas, Marek"]
[WhiteFideId "3902463"]
[BlackFideId "14928558"]
[WhiteElo "2473"]
[BlackElo "2233"]
[Result "0-1"]
[Round "04"]
[TimeControl "180+2"]
[Date "2023.03.07"]
[WhiteClock "0:00:32"]
[BlackClock "0:01:05"]

1. Nf3 {[%clk 0:03:00]}  d5 {[%clk 0:02:59]} 2. g3 {[%clk 0:03:00]}  Nf6 {[%clk 0:02:59]} 3. Bg2 {[%clk 0:03:00]}  Bg4 {[%clk 0:02:59]} 4. c4 {[%clk 0:02:59]}  c6 {[%clk 0:02:55]} 5. Ne5 {[%clk 0:02:59]}  Be6 {[%clk 0:02:52]} 6. cxd5 {[%clk 0:02:59]}  Bxd5 {[%clk 0:02:49]} 7. Nf3 {[%clk 0:02:59]}  e6 {[%clk 0:02:42]} 8. Nc3 {[%clk 0:02:57]}  Be7 {[%clk 0:02:42]} 9. O-O {[%clk 0:02:48]}  O-O {[%clk 0:02:39]} 10. d3 {[%clk 0:02:48]}  Bxf3 {[%clk 0:02:39]} 11. Bxf3 {[%clk 0:02:47]}  Nbd7 {[%clk 0:02:39]} 12. Rb1 {[%clk 0:02:42]}  Nd5 {[%clk 0:02:38]} 13. Bd2 {[%clk 0:02:40]}  Ne5 {[%clk 0:02:35]} 14. Bg2 {[%clk 0:02:40]}  Ng6 {[%clk 0:02:23]} 15. a3 {[%clk 0:02:37]}  Bf6 {[%clk 0:02:20]} 16. Qc2 {[%clk 0:02:34]}  Nge7 {[%clk 0:02:15]} 17. b4 {[%clk 0:02:33]}  Nxc3 {[%clk 0:02:12]} 18. Bxc3 {[%clk 0:02:33]}  Bxc3 {[%clk 0:02:13]} 19. Qxc3 {[%clk 0:02:34]}  Nd5 {[%clk 0:02:10]} 20. Qb2 {[%clk 0:02:20]}  Qf6 {[%clk 0:02:03]} 21. Qxf6 {[%clk 0:02:18]}  gxf6 {[%clk 0:02:00]} 22. Rfc1 {[%clk 0:02:16]}  a6 {[%clk 0:02:00]} 23. a4 {[%clk 0:02:14]}  Rfc8 {[%clk 0:01:56]} 24. d4 {[%clk 0:02:09]}  f5 {[%clk 0:01:51]} 25. e3 {[%clk 0:02:03]}  Kf8 {[%clk 0:01:49]} 26. b5 {[%clk 0:01:57]}  axb5 {[%clk 0:01:49]} 27. axb5 {[%clk 0:01:56]}  Ne7 {[%clk 0:01:43]} 28. bxc6 {[%clk 0:01:55]}  bxc6 {[%clk 0:01:43]} 29. Rb6 {[%clk 0:01:44]}  Rab8 {[%clk 0:01:40]} 30. Rxb8 {[%clk 0:01:35]}  Rxb8 {[%clk 0:01:40]} 31. h3 {[%clk 0:01:28]}  Rc8 {[%clk 0:01:38]} 32. Rc5 {[%clk 0:01:28]}  Ke8 {[%clk 0:01:36]} 33. g4 {[%clk 0:01:27]}  Kd7 {[%clk 0:01:35]} 34. Kh2 {[%clk 0:01:23]}  Kd6 {[%clk 0:01:26]} 35. Kg3 {[%clk 0:01:20]}  Rg8 {[%clk 0:01:24]} 36. f3 {[%clk 0:01:10]}  h5 {[%clk 0:01:21]} 37. e4 {[%clk 0:00:52]}  hxg4 {[%clk 0:01:14]} 38. fxg4 {[%clk 0:00:42]}  fxe4 {[%clk 0:01:11]} 39. Bxe4 {[%clk 0:00:40]}  f5 {[%clk 0:01:09]} 40. Bf3 {[%clk 0:00:38]}  fxg4 {[%clk 0:01:09]} 41. hxg4 {[%clk 0:00:31]}  Nf5+ {[%clk 0:01:09]} 42. Kf4 {[%clk 0:00:32]}  Nxd4 {[%clk 0:01:09]} 43. Rc1 {[%clk 0:00:32]}  Rf8+ {[%clk 0:01:05]} 0-1


[Site "https://www.chess.com"]

[Event "Titled Tuesday Blitz March 07 Late 2023"]
[White "Prydun, Andriy"]
[Black "Oro, Faustino"]
[WhiteFideId "14145898"]
[BlackFideId "20000197"]
[WhiteElo "2164"]
[BlackElo "1984"]
[Result "0-1"]
[Round "04"]
[TimeControl "180+2"]
[Date "2023.03.07"]
[WhiteClock "0:00:03"]
[BlackClock "0:00:40"]

1. e4 {[%clk 0:02:53]}  e5 {[%clk 0:02:59]} 2. Bb5 {[%clk 0:02:47]}  Nf6 {[%clk 0:02:54]} 3. Nf3 {[%clk 0:02:30]}  c6 {[%clk 0:02:40]} 4. Bd3 {[%clk 0:02:21]}  d6 {[%clk 0:02:37]} 5. Na3 {[%clk 0:02:15]}  Be7 {[%clk 0:02:35]} 6. O-O {[%clk 0:02:12]}  O-O {[%clk 0:02:34]} 7. Re1 {[%clk 0:02:12]}  Nbd7 {[%clk 0:02:34]} 8. Nc4 {[%clk 0:02:10]}  Nc5 {[%clk 0:02:31]} 9. b4 {[%clk 0:02:09]}  Nxd3 {[%clk 0:02:31]} 10. cxd3 {[%clk 0:02:10]}  h6 {[%clk 0:02:27]} 11. a4 {[%clk 0:02:08]}  Be6 {[%clk 0:02:26]} 12. b5 {[%clk 0:02:06]}  Re8 {[%clk 0:02:24]} 13. Bb2 {[%clk 0:02:01]}  Nd7 {[%clk 0:02:17]} 14. Qe2 {[%clk 0:01:52]}  Nc5 {[%clk 0:02:00]} 15. d4 {[%clk 0:01:38]}  Nb3 {[%clk 0:01:35]} 16. Rab1 {[%clk 0:01:28]}  exd4 {[%clk 0:01:30]} 17. Bxd4 {[%clk 0:01:25]}  Nxd4 {[%clk 0:01:16]} 18. Nxd4 {[%clk 0:01:26]}  Bd7 {[%clk 0:01:15]} 19. Qd3 {[%clk 0:01:20]}  Bf8 {[%clk 0:01:11]} 20. bxc6 {[%clk 0:01:16]}  bxc6 {[%clk 0:01:11]} 21. Rb7 {[%clk 0:01:16]}  d5 {[%clk 0:01:05]} 22. Nb2 {[%clk 0:00:56]}  Qc8 {[%clk 0:00:56]} 23. Rb3 {[%clk 0:00:42]}  c5 {[%clk 0:00:54]} 24. Rc3 {[%clk 0:00:37]}  dxe4 {[%clk 0:00:44]} 25. Rxe4 {[%clk 0:00:21]}  Qb7 {[%clk 0:00:41]} 26. Rxe8 {[%clk 0:00:03]}  Rxe8 {[%clk 0:00:40]} 0-1


[Site "https://www.chess.com"]

[Event "Titled Tuesday Blitz March 07 Late 2023"]
[White "Gasparyan, David"]
[Black "Karttunen, Mika"]
[WhiteFideId "13311980"]
[BlackFideId "502081"]
[WhiteElo "2433"]
[BlackElo "2396"]
[Result "1/2-1/2"]
[Round "04"]
[TimeControl "180+2"]
[Date "2023.03.07"]
[WhiteClock "0:00:38"]
[BlackClock "0:00:05"]

1. Nf3 {[%clk 0:02:55]}  e6 {[%clk 0:03:00]} 2. e4 {[%clk 0:02:55]}  d5 {[%clk 0:02:59]} 3. exd5 {[%clk 0:02:55]}  exd5 {[%clk 0:02:59]} 4. h3 {[%clk 0:02:54]}  Nc6 {[%clk 0:02:59]} 5. d4 {[%clk 0:02:54]}  Bd6 {[%clk 0:02:58]} 6. Bd3 {[%clk 0:02:54]}  Nge7 {[%clk 0:02:55]} 7. c3 {[%clk 0:02:53]}  Bf5 {[%clk 0:02:48]} 8. O-O {[%clk 0:02:48]}  Qd7 {[%clk 0:02:47]} 9. Bxf5 {[%clk 0:02:48]}  Qxf5 {[%clk 0:02:46]} 10. Re1 {[%clk 0:02:44]}  O-O-O {[%clk 0:02:46]} 11. b4 {[%clk 0:02:38]}  f6 {[%clk 0:02:28]} 12. b5 {[%clk 0:02:37]}  Na5 {[%clk 0:02:28]} 13. Ba3 {[%clk 0:02:31]}  Rhe8 {[%clk 0:02:22]} 14. Bxd6 {[%clk 0:02:30]}  Rxd6 {[%clk 0:02:22]} 15. Qa4 {[%clk 0:02:25]}  b6 {[%clk 0:02:22]} 16. Nbd2 {[%clk 0:02:25]}  Kb8 {[%clk 0:02:09]} 17. Re3 {[%clk 0:02:14]}  Rdd8 {[%clk 0:02:01]} 18. Rae1 {[%clk 0:02:14]}  Qd7 {[%clk 0:02:01]} 19. c4 {[%clk 0:02:03]}  Nc8 {[%clk 0:01:09]} 20. c5 {[%clk 0:01:57]}  Rxe3 {[%clk 0:00:59]} 21. Rxe3 {[%clk 0:01:57]}  Re8 {[%clk 0:00:59]} 22. c6 {[%clk 0:01:48]}  Qf7 {[%clk 0:00:53]} 23. Nb3 {[%clk 0:01:46]}  Rxe3 {[%clk 0:00:50]} 24. fxe3 {[%clk 0:01:44]}  Qe7 {[%clk 0:00:34]} 25. Nxa5 {[%clk 0:01:37]}  Qxe3+ {[%clk 0:00:34]} 26. Kh2 {[%clk 0:01:32]}  bxa5 {[%clk 0:00:34]} 27. Qxa5 {[%clk 0:01:31]}  Nd6 {[%clk 0:00:34]} 28. b6 {[%clk 0:01:23]}  axb6 {[%clk 0:00:29]} 29. Qxd5 {[%clk 0:01:23]}  Qf4+ {[%clk 0:00:28]} 30. g3 {[%clk 0:01:21]}  Qc1 {[%clk 0:00:21]} 31. Qb3 {[%clk 0:01:04]}  Qxc6 {[%clk 0:00:20]} 32. Nd2 {[%clk 0:01:00]}  Nf5 {[%clk 0:00:18]} 33. Qd3 {[%clk 0:00:56]}  g6 {[%clk 0:00:17]} 34. Ne4 {[%clk 0:00:54]}  Qe6 {[%clk 0:00:17]} 35. d5 {[%clk 0:00:53]}  Qe5 {[%clk 0:00:17]} 36. Kg2 {[%clk 0:00:50]}  Qb2+ {[%clk 0:00:17]} 37. Kf3 {[%clk 0:00:50]}  Qe5 {[%clk 0:00:18]} 38. h4 {[%clk 0:00:50]}  Nd6 {[%clk 0:00:18]} 39. Nc3 {[%clk 0:00:50]}  f5 {[%clk 0:00:17]} 40. Ne2 {[%clk 0:00:48]}  Qb2 {[%clk 0:00:17]} 41. Nd4 {[%clk 0:00:48]}  Qc1 {[%clk 0:00:15]} 42. Nc6+ {[%clk 0:00:48]}  Kb7 {[%clk 0:00:15]} 43. Kg2 {[%clk 0:00:47]}  Qb2+ {[%clk 0:00:15]} 44. Kh3 {[%clk 0:00:47]}  Qxa2 {[%clk 0:00:16]} 45. Nd8+ {[%clk 0:00:45]}  Kc8 {[%clk 0:00:15]} 46. Nc6 {[%clk 0:00:44]}  Qc4 {[%clk 0:00:15]} 47. Qa3 {[%clk 0:00:37]}  Qg4+ {[%clk 0:00:14]} 48. Kg2 {[%clk 0:00:36]}  Qe2+ {[%clk 0:00:15]} 49. Kh3 {[%clk 0:00:36]}  Qf1+ {[%clk 0:00:13]} 50. Kh2 {[%clk 0:00:37]}  Qf2+ {[%clk 0:00:13]} 51. Kh3 {[%clk 0:00:38]}  Qf1+ {[%clk 0:00:13]} 52. Kh2 {[%clk 0:00:38]}  Qf2+ {[%clk 0:00:09]} 53. Kh3 {[%clk 0:00:38]}  Qf1+ {[%clk 0:00:05]} 1/2-1/2


[Site "https://www.chess.com"]

[Event "Titled Tuesday Blitz March 07 Late 2023"]
[White "Leiva, Gianmarco"]
[Black "Meduri, Aakaash"]
[WhiteFideId "3804399"]
[BlackFideId "2032252"]
[WhiteElo "2345"]
[BlackElo "2113"]
[Result "1-0"]
[Round "04"]
[TimeControl "180+2"]
[Date "2023.03.07"]
[WhiteClock "0:00:07"]
[BlackClock "0:00:35"]

1. e4 {[%clk 0:03:00]}  c5 {[%clk 0:02:59]} 2. Nf3 {[%clk 0:03:01]}  d6 {[%clk 0:02:59]} 3. Bb5+ {[%clk 0:03:00]}  Bd7 {[%clk 0:03:00]} 4. Bxd7+ {[%clk 0:02:59]}  Nxd7 {[%clk 0:03:01]} 5. O-O {[%clk 0:02:58]}  Ngf6 {[%clk 0:03:01]} 6. Qe2 {[%clk 0:02:57]}  e6 {[%clk 0:03:01]} 7. d4 {[%clk 0:02:56]}  cxd4 {[%clk 0:02:55]} 8. Nxd4 {[%clk 0:02:57]}  a6 {[%clk 0:02:54]} 9. c4 {[%clk 0:02:57]}  Be7 {[%clk 0:02:54]} 10. Nc3 {[%clk 0:02:58]}  O-O {[%clk 0:02:55]} 11. b3 {[%clk 0:02:57]}  Rc8 {[%clk 0:02:41]} 12. Bb2 {[%clk 0:02:54]}  Qa5 {[%clk 0:02:42]} 13. Rac1 {[%clk 0:02:42]}  Rfd8 {[%clk 0:02:37]} 14. Kh1 {[%clk 0:02:38]}  Qc5 {[%clk 0:02:24]} 15. f4 {[%clk 0:02:33]}  Bf8 {[%clk 0:02:09]} 16. Rcd1 {[%clk 0:02:31]}  d5 {[%clk 0:02:01]} 17. e5 {[%clk 0:02:16]}  Ne4 {[%clk 0:01:51]} 18. Nxe4 {[%clk 0:01:18]}  dxe4 {[%clk 0:01:52]} 19. Qxe4 {[%clk 0:01:00]}  b5 {[%clk 0:01:52]} 20. cxb5 {[%clk 0:01:00]}  axb5 {[%clk 0:01:52]} 21. Rc1 {[%clk 0:00:59]}  Qb6 {[%clk 0:01:48]} 22. f5 {[%clk 0:00:47]}  Rxc1 {[%clk 0:01:38]} 23. Rxc1 {[%clk 0:00:47]}  Nc5 {[%clk 0:01:32]} 24. Qe2 {[%clk 0:00:36]}  exf5 {[%clk 0:01:29]} 25. Qxb5 {[%clk 0:00:34]}  Qg6 {[%clk 0:01:26]} 26. Rxc5 {[%clk 0:00:27]}  Bxc5 {[%clk 0:01:25]} 27. Qxc5 {[%clk 0:00:28]}  Qg4 {[%clk 0:01:21]} 28. Qc2 {[%clk 0:00:13]}  h5 {[%clk 0:01:16]} 29. Nf3 {[%clk 0:00:12]}  h4 {[%clk 0:01:10]} 30. h3 {[%clk 0:00:12]}  Qg3 {[%clk 0:01:08]} 31. Bd4 {[%clk 0:00:11]}  g6 {[%clk 0:01:03]} 32. Bf2 {[%clk 0:00:11]}  Qf4 {[%clk 0:01:02]} 33. Bxh4 {[%clk 0:00:10]}  Ra8 {[%clk 0:00:59]} 34. Bf6 {[%clk 0:00:10]}  Qe4 {[%clk 0:00:44]} 35. Qd2 {[%clk 0:00:09]}  Rc8 {[%clk 0:00:42]} 36. Qh6 {[%clk 0:00:09]}  Rc1+ {[%clk 0:00:35]} 37. Kh2 {[%clk 0:00:07]}  Qf4+ {[%clk 0:00:35]} 38. Qxf4 {[%clk 0:00:07]} 1-0


[Site "https://www.chess.com"]

[Event "Titled Tuesday Blitz March 07 Late 2023"]
[White "Silva, Caio Henrique Angelico"]
[Black "Martin Carmona, Gaston Manuel"]
[WhiteFideId "22777210"]
[BlackFideId "22284567"]
[WhiteElo "2096"]
[BlackElo "2245"]
[Result "0-1"]
[Round "04"]
[TimeControl "180+2"]
[Date "2023.03.07"]
[WhiteClock "0:02:07"]
[BlackClock "0:02:17"]

1. d4 {[%clk 0:03:00]}  Nf6 {[%clk 0:02:54]} 2. c4 {[%clk 0:03:00]}  e6 {[%clk 0:02:55]} 3. g3 {[%clk 0:03:00]}  c5 {[%clk 0:02:54]} 4. d5 {[%clk 0:02:55]}  exd5 {[%clk 0:02:55]} 5. cxd5 {[%clk 0:02:56]}  g6 {[%clk 0:02:56]} 6. Nc3 {[%clk 0:02:56]}  Bg7 {[%clk 0:02:57]} 7. Bg2 {[%clk 0:02:56]}  d6 {[%clk 0:02:57]} 8. Nf3 {[%clk 0:02:57]}  O-O {[%clk 0:02:58]} 9. O-O {[%clk 0:02:57]}  a6 {[%clk 0:02:58]} 10. a4 {[%clk 0:02:57]}  Nbd7 {[%clk 0:02:53]} 11. Nd2 {[%clk 0:02:52]}  Re8 {[%clk 0:02:53]} 12. Nc4 {[%clk 0:02:50]}  Ne5 {[%clk 0:02:50]} 13. Nxe5 {[%clk 0:02:49]}  Rxe5 {[%clk 0:02:51]} 14. Bf4 {[%clk 0:02:50]}  Rh5 {[%clk 0:02:51]} 15. a5 {[%clk 0:02:46]}  Bh3 {[%clk 0:02:51]} 16. Qb3 {[%clk 0:02:44]}  Qd7 {[%clk 0:02:51]} 17. Qa4 {[%clk 0:02:37]}  Qc8 {[%clk 0:02:33]} 18. Bxd6 {[%clk 0:02:22]}  Bxg2 {[%clk 0:02:31]} 19. Kxg2 {[%clk 0:02:22]}  Qh3+ {[%clk 0:02:31]} 20. Kf3 {[%clk 0:02:22]}  Rf5+ {[%clk 0:02:25]} 21. Bf4 {[%clk 0:02:22]}  g5 {[%clk 0:02:25]} 22. e4 {[%clk 0:02:21]}  Rxf4+ {[%clk 0:02:23]} 23. Ke2 {[%clk 0:02:18]}  Qh5+ {[%clk 0:02:19]} 24. f3 {[%clk 0:02:17]}  Qxh2+ {[%clk 0:02:17]} 25. Rf2 {[%clk 0:02:17]}  Qxg3 {[%clk 0:02:18]} 26. Qb3 {[%clk 0:02:12]}  Ng4 {[%clk 0:02:17]} 27. Raf1 {[%clk 0:02:07]}  Nxf2 {[%clk 0:02:17]} 28. Rxf2 {[%clk 0:02:07]}  Bd4 {[%clk 0:02:17]} 0-1


[Site "https://www.chess.com"]

[Event "Titled Tuesday Blitz March 07 Late 2023"]
[White "Seletsky, Grigory"]
[Black "Moral Garcia, Serafin"]
[WhiteFideId "14112191"]
[BlackFideId "2201925"]
[WhiteElo "2490"]
[BlackElo "2254"]
[Result "1-0"]
[Round "04"]
[TimeControl "180+2"]
[Date "2023.03.07"]
[WhiteClock "0:01:32"]
[BlackClock "0:01:06"]

1. e4 {[%clk 0:02:54]}  c5 {[%clk 0:02:59]} 2. Nc3 {[%clk 0:02:53]}  e6 {[%clk 0:02:59]} 3. Nf3 {[%clk 0:02:51]}  Nc6 {[%clk 0:02:57]} 4. Bb5 {[%clk 0:02:51]}  Nd4 {[%clk 0:02:57]} 5. Bd3 {[%clk 0:02:46]}  Nc6 {[%clk 0:02:48]} 6. O-O {[%clk 0:02:45]}  Nf6 {[%clk 0:02:41]} 7. Re1 {[%clk 0:02:45]}  d5 {[%clk 0:02:38]} 8. Bb5 {[%clk 0:02:39]}  d4 {[%clk 0:02:35]} 9. Nb1 {[%clk 0:02:38]}  Bd7 {[%clk 0:02:30]} 10. d3 {[%clk 0:02:37]}  Be7 {[%clk 0:02:28]} 11. Nbd2 {[%clk 0:02:32]}  a6 {[%clk 0:02:26]} 12. Bxc6 {[%clk 0:02:32]}  Bxc6 {[%clk 0:02:26]} 13. Ne5 {[%clk 0:02:32]}  Qc7 {[%clk 0:02:22]} 14. Nxc6 {[%clk 0:02:31]}  Qxc6 {[%clk 0:02:22]} 15. a4 {[%clk 0:02:31]}  O-O {[%clk 0:02:22]} 16. a5 {[%clk 0:02:30]}  Nd7 {[%clk 0:02:16]} 17. Nc4 {[%clk 0:02:31]}  Bd8 {[%clk 0:02:15]} 18. b3 {[%clk 0:02:24]}  Bc7 {[%clk 0:02:15]} 19. f4 {[%clk 0:02:22]}  f5 {[%clk 0:02:00]} 20. e5 {[%clk 0:02:19]}  Kh8 {[%clk 0:01:53]} 21. Qf3 {[%clk 0:02:14]}  Qxf3 {[%clk 0:01:48]} 22. gxf3 {[%clk 0:02:14]}  h6 {[%clk 0:01:41]} 23. Kf2 {[%clk 0:02:06]}  g6 {[%clk 0:01:37]} 24. Bd2 {[%clk 0:02:03]}  Rg8 {[%clk 0:01:37]} 25. h4 {[%clk 0:02:01]}  Bd8 {[%clk 0:01:34]} 26. Rh1 {[%clk 0:02:00]}  Rg7 {[%clk 0:01:29]} 27. Rab1 {[%clk 0:01:56]}  Be7 {[%clk 0:01:28]} 28. b4 {[%clk 0:01:56]}  cxb4 {[%clk 0:01:26]} 29. Bxb4 {[%clk 0:01:56]}  Bxb4 {[%clk 0:01:26]} 30. Rxb4 {[%clk 0:01:56]}  Nc5 {[%clk 0:01:27]} 31. Nd6 {[%clk 0:01:46]}  Rag8 {[%clk 0:01:11]} 32. Rxd4 {[%clk 0:01:44]}  Rh7 {[%clk 0:01:11]} 33. Rc4 {[%clk 0:01:41]}  Nd7 {[%clk 0:01:09]} 34. Rc7 {[%clk 0:01:37]}  Nf8 {[%clk 0:01:09]} 35. Rxh7+ {[%clk 0:01:36]}  Kxh7 {[%clk 0:01:10]} 36. Rb1 {[%clk 0:01:35]}  g5 {[%clk 0:01:08]} 37. Rxb7+ {[%clk 0:01:35]}  Kh8 {[%clk 0:01:08]} 38. hxg5 {[%clk 0:01:33]}  hxg5 {[%clk 0:01:08]} 39. Nf7+ {[%clk 0:01:32]}  Kh7 {[%clk 0:01:05]} 40. Nxg5+ {[%clk 0:01:32]}  Kh6 {[%clk 0:01:06]} 41. Ke3 {[%clk 0:01:32]} 1-0


[Site "https://www.chess.com"]

[Event "Titled Tuesday Blitz March 07 Late 2023"]
[White "Clarke, Brandon G I"]
[Black "Avalos Parra, Joao"]
[WhiteFideId "400319"]
[BlackFideId "3402541"]
[WhiteElo "2414"]
[BlackElo "2173"]
[Result "1-0"]
[Round "04"]
[TimeControl "180+2"]
[Date "2023.03.07"]
[WhiteClock "0:01:26"]
[BlackClock "0:02:24"]

1. e4 {[%clk 0:03:00]}  e5 {[%clk 0:02:57]} 2. Nf3 {[%clk 0:03:01]}  Nc6 {[%clk 0:02:57]} 3. Bb5 {[%clk 0:03:01]}  a6 {[%clk 0:02:58]} 4. Ba4 {[%clk 0:03:02]}  Nf6 {[%clk 0:02:58]} 5. O-O {[%clk 0:03:02]}  b5 {[%clk 0:02:59]} 6. Bb3 {[%clk 0:03:02]}  Bc5 {[%clk 0:02:59]} 7. c3 {[%clk 0:03:02]}  d6 {[%clk 0:02:59]} 8. a4 {[%clk 0:03:03]}  Rb8 {[%clk 0:02:57]} 9. d4 {[%clk 0:03:03]}  Bb6 {[%clk 0:02:56]} 10. axb5 {[%clk 0:02:54]}  axb5 {[%clk 0:02:55]} 11. Na3 {[%clk 0:02:54]}  b4 {[%clk 0:02:54]} 12. Nc4 {[%clk 0:02:53]}  exd4 {[%clk 0:02:53]} 13. cxd4 {[%clk 0:02:50]}  O-O {[%clk 0:02:53]} 14. Nxb6 {[%clk 0:01:37]}  Rxb6 {[%clk 0:02:51]} 15. Be3 {[%clk 0:01:37]}  Rb8 {[%clk 0:02:49]} 16. h3 {[%clk 0:01:32]}  Re8 {[%clk 0:02:45]} 17. Qc2 {[%clk 0:01:29]}  Bb7 {[%clk 0:02:43]} 18. Ba4 {[%clk 0:01:28]}  Ne7 {[%clk 0:02:23]} 19. Bxe8 {[%clk 0:01:25]}  Bxe4 {[%clk 0:02:24]} 20. Bxf7+ {[%clk 0:01:25]}  Kxf7 {[%clk 0:02:24]} 21. Ng5+ {[%clk 0:01:26]} 1-0


[Site "https://www.chess.com"]

[Event "Titled Tuesday Blitz March 07 Late 2023"]
[White "Boyer, Mahel"]
[Black "Kielinkei"]
[WhiteFideId "45102422"]
[WhiteElo "2439"]
[BlackElo "2407"]
[Result "1-0"]
[Round "04"]
[TimeControl "180+2"]
[Date "2023.03.07"]
[WhiteClock "0:01:14"]
[BlackClock "0:00:15"]

1. d4 {[%clk 0:03:00]}  Nf6 {[%clk 0:02:59]} 2. Nf3 {[%clk 0:03:01]}  e6 {[%clk 0:02:56]} 3. g3 {[%clk 0:03:01]}  c5 {[%clk 0:02:54]} 4. Bg2 {[%clk 0:03:00]}  Nc6 {[%clk 0:02:52]} 5. O-O {[%clk 0:03:00]}  cxd4 {[%clk 0:02:47]} 6. Nxd4 {[%clk 0:03:01]}  Bc5 {[%clk 0:02:47]} 7. Nb3 {[%clk 0:02:59]}  Be7 {[%clk 0:02:42]} 8. c4 {[%clk 0:02:59]}  O-O {[%clk 0:02:39]} 9. Nc3 {[%clk 0:03:00]}  d6 {[%clk 0:02:32]} 10. Nd4 {[%clk 0:02:51]}  Qc7 {[%clk 0:02:24]} 11. b3 {[%clk 0:02:50]}  a6 {[%clk 0:02:23]} 12. Bb2 {[%clk 0:02:50]}  Bd7 {[%clk 0:02:22]} 13. Rc1 {[%clk 0:02:49]}  Nxd4 {[%clk 0:02:20]} 14. Qxd4 {[%clk 0:02:49]}  Bc6 {[%clk 0:02:21]} 15. Nd5 {[%clk 0:02:47]}  Qd8 {[%clk 0:02:08]} 16. Nxe7+ {[%clk 0:02:45]}  Qxe7 {[%clk 0:02:08]} 17. Bxc6 {[%clk 0:02:26]}  bxc6 {[%clk 0:02:09]} 18. Rfd1 {[%clk 0:02:27]}  Rfd8 {[%clk 0:02:06]} 19. Qb6 {[%clk 0:02:23]}  c5 {[%clk 0:02:02]} 20. Bxf6 {[%clk 0:02:23]}  gxf6 {[%clk 0:02:01]} 21. Rc3 {[%clk 0:02:22]}  Rab8 {[%clk 0:01:35]} 22. Qa5 {[%clk 0:02:10]}  Qb7 {[%clk 0:01:26]} 23. Rcd3 {[%clk 0:02:09]}  Qc6 {[%clk 0:01:25]} 24. Qc3 {[%clk 0:02:06]}  f5 {[%clk 0:01:12]} 25. Qf6 {[%clk 0:01:34]}  Qe4 {[%clk 0:00:20]} 26. Qg5+ {[%clk 0:01:21]}  Kh8 {[%clk 0:00:16]} 27. Qf6+ {[%clk 0:01:14]}  Kg8 {[%clk 0:00:15]} 28. e3 {[%clk 0:01:14]} 1-0


[Site "https://www.chess.com"]

[Event "Titled Tuesday Blitz March 07 Late 2023"]
[White "Bitoon, Richard"]
[Black "Miszler, Levente"]
[WhiteFideId "5201110"]
[BlackFideId "763276"]
[WhiteElo "2374"]
[BlackElo "2176"]
[Result "1-0"]
[Round "04"]
[TimeControl "180+2"]
[Date "2023.03.07"]
[WhiteClock "0:00:18"]
[BlackClock "0:00:01"]

1. e4 {[%clk 0:03:00]}  e6 {[%clk 0:03:00]} 2. d4 {[%clk 0:03:01]}  d5 {[%clk 0:03:00]} 3. Nd2 {[%clk 0:03:01]}  f5 {[%clk 0:03:00]} 4. exf5 {[%clk 0:03:01]}  exf5 {[%clk 0:03:01]} 5. Ngf3 {[%clk 0:03:01]}  Nf6 {[%clk 0:03:01]} 6. Bd3 {[%clk 0:03:01]}  Bd6 {[%clk 0:03:01]} 7. Ne5 {[%clk 0:02:59]}  O-O {[%clk 0:03:00]} 8. O-O {[%clk 0:02:56]}  c5 {[%clk 0:02:59]} 9. c4 {[%clk 0:02:50]}  cxd4 {[%clk 0:02:56]} 10. Ndf3 {[%clk 0:02:50]}  Qc7 {[%clk 0:02:46]} 11. Re1 {[%clk 0:02:46]}  Ne4 {[%clk 0:02:44]} 12. Bf4 {[%clk 0:02:25]}  Nc6 {[%clk 0:02:31]} 13. Nxc6 {[%clk 0:02:23]}  Bxf4 {[%clk 0:02:26]} 14. Ncxd4 {[%clk 0:02:23]}  dxc4 {[%clk 0:02:09]} 15. Bxe4 {[%clk 0:02:12]}  fxe4 {[%clk 0:02:07]} 16. Rxe4 {[%clk 0:02:13]}  Bg4 {[%clk 0:02:02]} 17. Ne6 {[%clk 0:02:04]}  Bxe6 {[%clk 0:01:57]} 18. Rxe6 {[%clk 0:02:05]}  Rad8 {[%clk 0:01:56]} 19. Qe2 {[%clk 0:02:05]}  c3 {[%clk 0:01:50]} 20. bxc3 {[%clk 0:01:58]}  Qxc3 {[%clk 0:01:51]} 21. Re1 {[%clk 0:01:53]}  Qa3 {[%clk 0:01:38]} 22. Re7 {[%clk 0:01:49]}  b6 {[%clk 0:01:25]} 23. Qe6+ {[%clk 0:01:10]}  Kh8 {[%clk 0:01:24]} 24. Qg4 {[%clk 0:01:10]}  Bh6 {[%clk 0:01:09]} 25. h4 {[%clk 0:01:04]}  Qxa2 {[%clk 0:01:05]} 26. R1e2 {[%clk 0:00:42]}  Qa1+ {[%clk 0:00:55]} 27. Kh2 {[%clk 0:00:34]}  Qa3 {[%clk 0:00:56]} 28. R2e6 {[%clk 0:00:32]}  Rf4 {[%clk 0:00:31]} 29. Re8+ {[%clk 0:00:26]}  Rxe8 {[%clk 0:00:29]} 30. Rxe8+ {[%clk 0:00:26]}  Rf8 {[%clk 0:00:29]} 31. Qc8 {[%clk 0:00:26]}  Qd6+ {[%clk 0:00:24]} 32. g3 {[%clk 0:00:25]}  Kg8 {[%clk 0:00:24]} 33. Qc4+ {[%clk 0:00:24]}  Kh8 {[%clk 0:00:22]} 34. Qf7 {[%clk 0:00:24]}  g6 {[%clk 0:00:16]} 35. Ng5 {[%clk 0:00:24]}  Bg7 {[%clk 0:00:08]} 36. Ne6 {[%clk 0:00:19]}  Qxe6 {[%clk 0:00:02]} 37. Rxf8+ {[%clk 0:00:18]}  Bxf8 {[%clk 0:00:01]} 38. Qxe6 {[%clk 0:00:19]}  Bg7 {[%clk 0:00:01]} 39. Qe8+ {[%clk 0:00:18]} 1-0


[Site "https://www.chess.com"]